[Event "Early-Titled-Tuesday-Blitz-July-09-2024"]
[Site "Chess.com"]
[Date "2024.07.09"]
[Round "11"]
[White "Sadykov_Ramil"]
[Black "ImportedItalianMaple"]
[Result "1/2-1/2"]
[WhiteElo "2627"]
[BlackElo "2493"]
[TimeControl "180+1"]
[EndTime "10:08:50 PDT"]
[Termination "Game drawn - insufficient material"]

1. d4 {[%clk 0:03:00.9]} 1... g6 {[%clk 0:02:57.2]} 2. e4 {[%clk 0:03:00.4]}
2... Bg7 {[%clk 0:02:57.3]} 3. Nc3 {[%clk 0:03:00.5]} 3... d5 {[%clk 0:02:57]}
4. exd5 {[%clk 0:02:57.5]} 4... Nf6 {[%clk 0:02:57.4]} 5. Bb5+ {[%clk
0:02:50.8]} 5... Nbd7 {[%clk 0:02:57.4]} 6. Nge2 {[%clk 0:02:16.9]} 6... O-O
{[%clk 0:02:45.2]} 7. Bxd7 {[%clk 0:02:13.1]} 7... Qxd7 {[%clk 0:02:46.1]} 8.
Nf4 {[%clk 0:02:12.1]} 8... b5 {[%clk 0:02:46.7]} 9. a3 {[%clk 0:02:07.2]} 9...
Bb7 {[%clk 0:02:45.7]} 10. O-O {[%clk 0:02:03.8]} 10... Nxd5 {[%clk 0:02:37.6]}
11. Nfxd5 {[%clk 0:02:00.8]} 11... Bxd5 {[%clk 0:02:38.2]} 12. Nxd5 {[%clk
0:02:01.7]} 12... Qxd5 {[%clk 0:02:38.4]} 13. c3 {[%clk 0:02:01.9]} 13... Rfd8
{[%clk 0:02:30.1]} 14. Qe2 {[%clk 0:01:59]} 14... e6 {[%clk 0:02:11.2]} 15. Bf4
{[%clk 0:01:56.9]} 15... c5 {[%clk 0:02:09.3]} 16. Qxb5 {[%clk 0:01:42.3]} 16...
cxd4 {[%clk 0:02:08.9]} 17. Qxd5 {[%clk 0:01:41.2]} 17... Rxd5 {[%clk
0:02:09.8]} 18. c4 {[%clk 0:01:40.5]} 18... Rc5 {[%clk 0:01:59.2]} 19. Rfc1
{[%clk 0:01:27]} 19... Rac8 {[%clk 0:01:59.1]} 20. b3 {[%clk 0:01:25.6]} 20...
e5 {[%clk 0:01:23.5]} 21. Bd2 {[%clk 0:01:23.9]} 21... f5 {[%clk 0:01:14.3]} 22.
Kf1 {[%clk 0:01:16.1]} 22... e4 {[%clk 0:01:13.4]} 23. Ra2 {[%clk 0:01:00.1]}
23... Kf7 {[%clk 0:00:53.4]} 24. Rac2 {[%clk 0:00:51.7]} 24... Ke6 {[%clk
0:00:42]} 25. b4 {[%clk 0:00:47.7]} 25... R5c6 {[%clk 0:00:19.6]} 26. b5 {[%clk
0:00:30.6]} 26... R6c7 {[%clk 0:00:18.9]} 27. Ba5 {[%clk 0:00:29.6]} 27... Rb7
{[%clk 0:00:18]} 28. a4 {[%clk 0:00:26.8]} 28... a6 {[%clk 0:00:16.9]} 29. c5
{[%clk 0:00:13.6]} 29... axb5 {[%clk 0:00:15.7]} 30. c6 {[%clk 0:00:12.2]} 30...
Ra7 {[%clk 0:00:15.5]} 31. Bb6 {[%clk 0:00:12.6]} 31... Rxa4 {[%clk 0:00:15.5]}
32. c7 {[%clk 0:00:12.4]} 32... d3 {[%clk 0:00:14.7]} 33. Rc6+ {[%clk
0:00:11.7]} 33... Kd7 {[%clk 0:00:14.2]} 34. R6c5 {[%clk 0:00:11.3]} 34... Rc4
{[%clk 0:00:11.2]} 35. R1xc4 {[%clk 0:00:08.9]} 35... bxc4 {[%clk 0:00:12.1]}
36. Rxc4 {[%clk 0:00:09.6]} 36... Be5 {[%clk 0:00:11.5]} 37. f3 {[%clk
0:00:09.7]} 37... Bxc7 {[%clk 0:00:11.9]} 38. Bxc7 {[%clk 0:00:08.1]} 38... Rxc7
{[%clk 0:00:12.8]} 39. Rd4+ {[%clk 0:00:08.7]} 39... Ke6 {[%clk 0:00:11.4]} 40.
fxe4 {[%clk 0:00:09.6]} 40... Ke5 {[%clk 0:00:10.7]} 41. Rxd3 {[%clk 0:00:09.9]}
41... Kxe4 {[%clk 0:00:11.2]} 42. Ra3 {[%clk 0:00:09.5]} 42... Rc1+ {[%clk
0:00:11.5]} 43. Kf2 {[%clk 0:00:09.1]} 43... Rc2+ {[%clk 0:00:12.1]} 44. Kg1
{[%clk 0:00:05.2]} 44... h5 {[%clk 0:00:10.9]} 45. h4 {[%clk 0:00:02.9]} 45...
Kf4 {[%clk 0:00:10]} 46. Kh2 {[%clk 0:00:02.8]} 46... Kg4 {[%clk 0:00:10]} 47.
Ra4+ {[%clk 0:00:02.6]} 47... f4 {[%clk 0:00:10.2]} 48. Ra6 {[%clk 0:00:02.9]}
48... f3 {[%clk 0:00:08.6]} 49. Rxg6+ {[%clk 0:00:02.8]} 49... Kxh4 {[%clk
0:00:09.3]} 50. Kg1 {[%clk 0:00:02.7]} 50... Rc1+ {[%clk 0:00:04.9]} 51. Kf2
{[%clk 0:00:02.6]} 51... Rc2+ {[%clk 0:00:05.3]} 52. Kxf3 {[%clk 0:00:02.7]}
52... Rc3+ {[%clk 0:00:06]} 53. Kf4 {[%clk 0:00:01.8]} 53... Rc4+ {[%clk
0:00:06]} 54. Kf3 {[%clk 0:00:02.4]} 54... Rg4 {[%clk 0:00:06.7]} 55. Rxg4+
{[%clk 0:00:01.8]} 55... hxg4+ {[%clk 0:00:07.6]} 56. Kf4 {[%clk 0:00:02.4]}
56... Kh5 {[%clk 0:00:06.2]} 57. g3 {[%clk 0:00:02.9]} 57... Kh6 {[%clk
0:00:06.8]} 58. Kf5 {[%clk 0:00:03.3]} 58... Kh5 {[%clk 0:00:07]} 59. Kf6 {[%clk
0:00:03.7]} 59... Kh6 {[%clk 0:00:07.6]} 60. Ke5 {[%clk 0:00:04.2]} 60... Kg5
{[%clk 0:00:07.7]} 61. Ke6 {[%clk 0:00:04.7]} 61... Kg6 {[%clk 0:00:08]} 62. Ke5
{[%clk 0:00:05.3]} 62... Kg5 {[%clk 0:00:08.5]} 63. Ke4 {[%clk 0:00:06.2]} 63...
Kg6 {[%clk 0:00:08.3]} 64. Kf4 {[%clk 0:00:06.8]} 64... Kf6 {[%clk 0:00:08.9]}
65. Kxg4 {[%clk 0:00:06.4]} 65... Kg6 {[%clk 0:00:09.6]} 66. Kh4 {[%clk
0:00:06.6]} 66... Kh6 {[%clk 0:00:10]} 67. g4 {[%clk 0:00:07.5]} 67... Kg6
{[%clk 0:00:10.3]} 68. g5 {[%clk 0:00:08.4]} 68... Kg7 {[%clk 0:00:10.3]} 69.
Kh5 {[%clk 0:00:09.3]} 69... Kh7 {[%clk 0:00:10.8]} 70. Kg4 {[%clk 0:00:09.8]}
70... Kg6 {[%clk 0:00:11.1]} 71. Kf4 {[%clk 0:00:10.7]} 71... Kg7 {[%clk
0:00:11.2]} 72. Kf5 {[%clk 0:00:11.6]} 72... Kf7 {[%clk 0:00:11.8]} 73. g6+
{[%clk 0:00:10.9]} 73... Kg7 {[%clk 0:00:12.2]} 74. Kg5 {[%clk 0:00:11.3]} 74...
Kg8 {[%clk 0:00:12.9]} 75. Kg4 {[%clk 0:00:11.7]} 75... Kg7 {[%clk 0:00:13.2]}
76. Kf5 {[%clk 0:00:12.1]} 76... Kg8 {[%clk 0:00:13.1]} 77. Ke6 {[%clk 0:00:13]}
77... Kg7 {[%clk 0:00:13.2]} 78. Kf5 {[%clk 0:00:13.5]} 78... Kg8 {[%clk
0:00:13.7]} 79. Kg5 {[%clk 0:00:14]} 79... Kg7 {[%clk 0:00:14.1]} 80. Kh5 {[%clk
0:00:13.7]} 80... Kg8 {[%clk 0:00:14.3]} 81. Kh6 {[%clk 0:00:14]} 81... Kh8
{[%clk 0:00:14.5]} 82. Kg5 {[%clk 0:00:11.9]} 82... Kg7 {[%clk 0:00:14.8]} 83.
Kh5 {[%clk 0:00:12.5]} 83... Kg8 {[%clk 0:00:14]} 84. Kh4 {[%clk 0:00:13.1]}
84... Kg7 {[%clk 0:00:14.3]} 85. Kg5 {[%clk 0:00:13.5]} 85... Kg8 {[%clk
0:00:14.5]} 86. Kg4 {[%clk 0:00:13.7]} 86... Kg7 {[%clk 0:00:15]} 87. Kf4 {[%clk
0:00:14.2]} 87... Kxg6 {[%clk 0:00:15]} 1/2-1/2

[Event "Early-Titled-Tuesday-Blitz-July-09-2024"]
[Site "Chess.com"]
[Date "2024.07.09"]
[Round "11"]
[White "nindjaxx8"]
[Black "Antek_Radzimski"]
[Result "1/2-1/2"]
[WhiteElo "2693"]
[BlackElo "2586"]
[TimeControl "180+1"]
[EndTime "10:09:19 PDT"]
[Termination "Game drawn by repetition"]

1. d4 {[%clk 0:03:00.9]} 1... Nf6 {[%clk 0:02:59.6]} 2. c4 {[%clk 0:02:55.4]}
2... e6 {[%clk 0:02:59.4]} 3. Nc3 {[%clk 0:02:49.8]} 3... Bb4 {[%clk 0:02:59.5]}
4. Qc2 {[%clk 0:02:49.1]} 4... d5 {[%clk 0:02:58.6]} 5. cxd5 {[%clk 0:02:47.6]}
5... exd5 {[%clk 0:02:59.5]} 6. Bg5 {[%clk 0:02:44.1]} 6... h6 {[%clk
0:02:59.9]} 7. Bh4 {[%clk 0:02:41.4]} 7... g5 {[%clk 0:03:00.4]} 8. Bg3 {[%clk
0:02:40.2]} 8... c5 {[%clk 0:02:59.3]} 9. e3 {[%clk 0:02:34.4]} 9... Nc6 {[%clk
0:02:58.2]} 10. Nf3 {[%clk 0:02:33.4]} 10... Bg4 {[%clk 0:02:40.3]} 11. Bb5
{[%clk 0:02:30.4]} 11... Bxf3 {[%clk 0:02:38.8]} 12. gxf3 {[%clk 0:02:31.3]}
12... cxd4 {[%clk 0:02:38.3]} 13. exd4 {[%clk 0:02:27.7]} 13... Qe7+ {[%clk
0:02:35.8]} 14. Be5 {[%clk 0:02:22.9]} 14... Nd7 {[%clk 0:02:18.1]} 15. O-O
{[%clk 0:02:18.9]} 15... Ndxe5 {[%clk 0:02:10.7]} 16. dxe5 {[%clk 0:02:17.1]}
16... Bxc3 {[%clk 0:01:56.6]} 17. Qxc3 {[%clk 0:02:14.2]} 17... O-O {[%clk
0:01:56.8]} 18. Bxc6 {[%clk 0:02:07]} 18... Rac8 {[%clk 0:01:54]} 19. Rfe1
{[%clk 0:02:00]} 19... bxc6 {[%clk 0:01:45.4]} 20. Rad1 {[%clk 0:01:58.7]} 20...
Qe6 {[%clk 0:01:44.3]} 21. Kh1 {[%clk 0:01:56.9]} 21... c5 {[%clk 0:01:40.8]}
22. f4 {[%clk 0:01:56]} 22... d4 {[%clk 0:01:38.9]} 23. Qf3 {[%clk 0:01:55.2]}
23... Qf5 {[%clk 0:01:34.3]} 24. Rg1 {[%clk 0:01:50.5]} 24... f6 {[%clk
0:01:17.5]} 25. Qd5+ {[%clk 0:01:44.3]} 25... Kh8 {[%clk 0:01:16.1]} 26. fxg5
{[%clk 0:01:40.3]} 26... fxg5 {[%clk 0:01:13.1]} 27. Rg3 {[%clk 0:01:37]} 27...
Rce8 {[%clk 0:01:06.7]} 28. Qxc5 {[%clk 0:01:16]} 28... Qxe5 {[%clk 0:00:54.3]}
29. Qxe5+ {[%clk 0:00:44.3]} 29... Rxe5 {[%clk 0:00:55.2]} 30. Rd2 {[%clk
0:00:45]} 30... Ref5 {[%clk 0:00:34.1]} 31. Kg2 {[%clk 0:00:43.8]} 31... Rf4
{[%clk 0:00:35]} 32. Ra3 {[%clk 0:00:41.2]} 32... R8f7 {[%clk 0:00:32.3]} 33. b4
{[%clk 0:00:31.4]} 33... Rg4+ {[%clk 0:00:27.2]} 34. Kf1 {[%clk 0:00:30.4]}
34... Rh4 {[%clk 0:00:21.4]} 35. h3 {[%clk 0:00:30.4]} 35... d3 {[%clk
0:00:20.8]} 36. Raxd3 {[%clk 0:00:18.9]} 36... Rxb4 {[%clk 0:00:20.4]} 37. Rd6
{[%clk 0:00:19.3]} 37... Kg7 {[%clk 0:00:19.8]} 38. Ra6 {[%clk 0:00:19.8]} 38...
Rb6 {[%clk 0:00:15.6]} 39. Ra5 {[%clk 0:00:18.3]} 39... Rbf6 {[%clk 0:00:15.2]}
40. Kg2 {[%clk 0:00:18.9]} 40... Kg6 {[%clk 0:00:14.2]} 41. Ra4 {[%clk
0:00:18.5]} 41... h5 {[%clk 0:00:14.2]} 42. Ra5 {[%clk 0:00:17.8]} 42... Rf5
{[%clk 0:00:12.3]} 43. Ra6+ {[%clk 0:00:15.4]} 43... R5f6 {[%clk 0:00:12.7]} 44.
Ra5 {[%clk 0:00:15.7]} 44... Rf5 {[%clk 0:00:12.9]} 45. Rd6+ {[%clk 0:00:12.7]}
45... R5f6 {[%clk 0:00:11.9]} 46. Rxf6+ {[%clk 0:00:10.7]} 46... Kxf6 {[%clk
0:00:11.9]} 47. Kg3 {[%clk 0:00:11.4]} 47... Rb7 {[%clk 0:00:05.9]} 48. f3
{[%clk 0:00:07.6]} 48... Rb2 {[%clk 0:00:03.2]} 49. Rxa7 {[%clk 0:00:04.3]}
49... Kf5 {[%clk 0:00:02.6]} 50. Ra5+ {[%clk 0:00:03.8]} 50... Kf6 {[%clk
0:00:02.8]} 51. h4 {[%clk 0:00:04.2]} 51... gxh4+ {[%clk 0:00:03]} 52. Kxh4
{[%clk 0:00:05.1]} 52... Rf2 {[%clk 0:00:03.5]} 53. Kg3 {[%clk 0:00:04.1]} 53...
Rb2 {[%clk 0:00:03.4]} 54. a3 {[%clk 0:00:04.3]} 54... Rb3 {[%clk 0:00:03.6]}
55. Kf4 {[%clk 0:00:04.2]} 55... h4 {[%clk 0:00:03.9]} 56. Ra6+ {[%clk
0:00:04.2]} 56... Ke7 {[%clk 0:00:04]} 57. Kg4 {[%clk 0:00:04.1]} 57... h3
{[%clk 0:00:04.3]} 58. Rh6 {[%clk 0:00:02.7]} 58... Rxa3 {[%clk 0:00:04.2]} 59.
Rxh3 {[%clk 0:00:03.4]} 59... Kf6 {[%clk 0:00:04.8]} 60. Rh6+ {[%clk 0:00:03.4]}
60... Kg7 {[%clk 0:00:04.9]} 61. Rb6 {[%clk 0:00:04]} 61... Ra4+ {[%clk
0:00:05.2]} 62. Kg5 {[%clk 0:00:03.8]} 62... Ra5+ {[%clk 0:00:05.5]} 63. Kg4
{[%clk 0:00:04.5]} 63... Ra4+ {[%clk 0:00:05.7]} 64. f4 {[%clk 0:00:05.2]} 64...
Ra1 {[%clk 0:00:06]} 65. Kg5 {[%clk 0:00:05.5]} 65... Rg1+ {[%clk 0:00:06.5]}
66. Kf5 {[%clk 0:00:06]} 66... Ra1 {[%clk 0:00:07.3]} 67. Rb7+ {[%clk
0:00:06.3]} 67... Kf8 {[%clk 0:00:07]} 68. Rd7 {[%clk 0:00:04.8]} 68... Ra5+
{[%clk 0:00:06.9]} 69. Kg6 {[%clk 0:00:04.4]} 69... Ra6+ {[%clk 0:00:07.4]} 70.
Kg5 {[%clk 0:00:04.9]} 70... Ra1 {[%clk 0:00:06.7]} 71. f5 {[%clk 0:00:03.1]}
71... Ra6 {[%clk 0:00:06.3]} 72. Rb7 {[%clk 0:00:02.7]} 72... Rc6 {[%clk
0:00:06.2]} 73. Rb5 {[%clk 0:00:02.7]} 73... Ra6 {[%clk 0:00:06.4]} 74. Re5
{[%clk 0:00:02.7]} 74... Rd6 {[%clk 0:00:06.1]} 75. Re4 {[%clk 0:00:02]} 75...
Ra6 {[%clk 0:00:06.3]} 76. Rh4 {[%clk 0:00:02.4]} 76... Kg7 {[%clk 0:00:05.9]}
77. Rd4 {[%clk 0:00:02.2]} 77... Kf8 {[%clk 0:00:06.1]} 78. Rd7 {[%clk
0:00:02.5]} 78... Rb6 {[%clk 0:00:06.3]} 79. Rh7 {[%clk 0:00:02.8]} 79... Kg8
{[%clk 0:00:06.2]} 80. Rh6 {[%clk 0:00:02.9]} 80... Rxh6 {[%clk 0:00:04]} 81.
Kxh6 {[%clk 0:00:03.6]} 81... Kf7 {[%clk 0:00:04.9]} 82. Kg5 {[%clk 0:00:04.5]}
82... Kg7 {[%clk 0:00:05.5]} 83. Kf4 {[%clk 0:00:05.4]} 83... Kf6 {[%clk
0:00:05.6]} 84. Kg4 {[%clk 0:00:06.3]} 84... Kf7 {[%clk 0:00:05.7]} 85. Kf4
{[%clk 0:00:07.2]} 85... Kf6 {[%clk 0:00:05.9]} 86. Ke4 {[%clk 0:00:08.1]} 86...
Kf7 {[%clk 0:00:06.3]} 87. Ke5 {[%clk 0:00:08.7]} 87... Ke7 {[%clk 0:00:06.9]}
88. Kd5 {[%clk 0:00:09.3]} 88... Kf6 {[%clk 0:00:06]} 89. Ke4 {[%clk 0:00:10.2]}
89... Kf7 {[%clk 0:00:06.7]} 90. Ke5 {[%clk 0:00:11.1]} 90... Ke7 {[%clk
0:00:07.4]} 91. f6+ {[%clk 0:00:11.8]} 91... Kf7 {[%clk 0:00:07.8]} 92. Kf5
{[%clk 0:00:12.7]} 92... Kf8 {[%clk 0:00:07]} 93. Ke6 {[%clk 0:00:13.6]} 93...
Ke8 {[%clk 0:00:07.6]} 94. Ke5 {[%clk 0:00:14.5]} 94... Kf7 {[%clk 0:00:07.3]}
95. Kf5 {[%clk 0:00:15.4]} 95... Kf8 {[%clk 0:00:07.9]} 96. Kg5 {[%clk
0:00:16.3]} 96... Kf7 {[%clk 0:00:07.6]} 97. Kf5 {[%clk 0:00:16.5]} 1/2-1/2

[Event "Early-Titled-Tuesday-Blitz-July-09-2024"]
[Site "Chess.com"]
[Date "2024.07.09"]
[Round "11"]
[White "MrMatesM"]
[Black "Likvidator228"]
[Result "1/2-1/2"]
[WhiteElo "2686"]
[BlackElo "2572"]
[TimeControl "180+1"]
[EndTime "10:11:34 PDT"]
[Termination "Game drawn by repetition"]

1. Nf3 {[%clk 0:03:00.9]} 1... d5 {[%clk 0:02:56.2]} 2. g3 {[%clk 0:03:01.7]}
2... Nf6 {[%clk 0:02:56.4]} 3. Bg2 {[%clk 0:03:02.6]} 3... c6 {[%clk 0:02:56.8]}
4. O-O {[%clk 0:03:03.5]} 4... Bf5 {[%clk 0:02:56.8]} 5. d3 {[%clk 0:03:04.4]}
5... e6 {[%clk 0:02:57.2]} 6. Nbd2 {[%clk 0:03:05.3]} 6... Nbd7 {[%clk
0:02:56.9]} 7. b3 {[%clk 0:03:05.9]} 7... h6 {[%clk 0:02:56.3]} 8. Bb2 {[%clk
0:03:06.3]} 8... Be7 {[%clk 0:02:55.2]} 9. Re1 {[%clk 0:03:06.6]} 9... Bh7
{[%clk 0:02:53.4]} 10. e4 {[%clk 0:03:07.1]} 10... O-O {[%clk 0:02:52.3]} 11.
Qe2 {[%clk 0:03:06.4]} 11... Re8 {[%clk 0:02:50]} 12. a3 {[%clk 0:03:03.8]}
12... dxe4 {[%clk 0:02:45.9]} 13. dxe4 {[%clk 0:03:04.1]} 13... Qc7 {[%clk
0:02:38.6]} 14. Nd4 {[%clk 0:02:47.2]} 14... e5 {[%clk 0:02:34.6]} 15. Nf5
{[%clk 0:02:46.8]} 15... Bf8 {[%clk 0:02:35.2]} 16. Nc4 {[%clk 0:02:44.9]} 16...
Bxf5 {[%clk 0:02:31.6]} 17. exf5 {[%clk 0:02:45.1]} 17... e4 {[%clk 0:02:22.3]}
18. Rad1 {[%clk 0:02:41.8]} 18... Rad8 {[%clk 0:02:05.3]} 19. b4 {[%clk
0:02:34.2]} 19... b5 {[%clk 0:01:53.3]} 20. Na5 {[%clk 0:02:31.3]} 20... c5
{[%clk 0:01:29.3]} 21. Qxb5 {[%clk 0:02:16.3]} 21... cxb4 {[%clk 0:01:29.2]} 22.
axb4 {[%clk 0:02:12.6]} 22... Qxc2 {[%clk 0:01:29]} 23. Bd4 {[%clk 0:02:07.5]}
23... Nb6 {[%clk 0:01:21]} 24. Rc1 {[%clk 0:01:47]} 24... Qd3 {[%clk 0:01:18.5]}
25. Qxd3 {[%clk 0:01:44.9]} 25... exd3 {[%clk 0:01:18.9]} 26. Rxe8 {[%clk
0:01:42.5]} 26... Nxe8 {[%clk 0:01:13.3]} 27. Bc3 {[%clk 0:01:36.1]} 27... Nd6
{[%clk 0:01:04.9]} 28. f6 {[%clk 0:01:31.8]} 28... Nb5 {[%clk 0:00:55.7]} 29.
Bd2 {[%clk 0:01:17.4]} 29... Nd4 {[%clk 0:00:48]} 30. Rd1 {[%clk 0:01:08.3]}
30... gxf6 {[%clk 0:00:40]} 31. Bf1 {[%clk 0:01:07.4]} 31... Nf3+ {[%clk
0:00:36.7]} 32. Kg2 {[%clk 0:01:07.5]} 32... Nxd2 {[%clk 0:00:35.7]} 33. Rxd2
{[%clk 0:01:08.1]} 33... Bxb4 {[%clk 0:00:36.4]} 34. Nc6 {[%clk 0:01:08.8]}
34... Bxd2 {[%clk 0:00:34]} 35. Nxd8 {[%clk 0:01:09.2]} 35... a5 {[%clk
0:00:29.9]} 36. Bxd3 {[%clk 0:01:09.6]} 36... a4 {[%clk 0:00:30.4]} 37. Nc6
{[%clk 0:01:06.4]} 37... a3 {[%clk 0:00:26.1]} 38. Bb1 {[%clk 0:01:06.7]} 38...
Nd5 {[%clk 0:00:23.2]} 39. Nd4 {[%clk 0:00:39.5]} 39... Nc3 {[%clk 0:00:23]} 40.
Bc2 {[%clk 0:00:36.3]} 40... a2 {[%clk 0:00:19.5]} 41. Nb3 {[%clk 0:00:36.7]}
41... Bc1 {[%clk 0:00:18.8]} 42. Kf3 {[%clk 0:00:33.8]} 42... Bb2 {[%clk
0:00:19.2]} 43. Bd3 {[%clk 0:00:32.6]} 43... a1=Q {[%clk 0:00:19.2]} 44. Nxa1
{[%clk 0:00:32.7]} 44... Bxa1 {[%clk 0:00:20.1]} 45. Kf4 {[%clk 0:00:32.7]}
45... Kg7 {[%clk 0:00:20.8]} 46. Kf5 {[%clk 0:00:33.1]} 46... Nd5 {[%clk
0:00:20]} 47. h4 {[%clk 0:00:31.1]} 47... Ne7+ {[%clk 0:00:18.4]} 48. Ke4 {[%clk
0:00:31]} 48... Be5 {[%clk 0:00:18.6]} 49. Kf3 {[%clk 0:00:31]} 49... f5 {[%clk
0:00:18.2]} 50. Bc4 {[%clk 0:00:31.2]} 50... Kf6 {[%clk 0:00:18.3]} 51. Bd3
{[%clk 0:00:31.3]} 51... Bd6 {[%clk 0:00:17.6]} 52. Bc4 {[%clk 0:00:31.8]} 52...
Ng6 {[%clk 0:00:16.9]} 53. Bb3 {[%clk 0:00:30.5]} 53... Ne5+ {[%clk 0:00:16.9]}
54. Ke3 {[%clk 0:00:27.8]} 54... Ng4+ {[%clk 0:00:16.2]} 55. Kf3 {[%clk
0:00:28.2]} 55... Bc5 {[%clk 0:00:16]} 56. Bd5 {[%clk 0:00:27.5]} 56... Nxf2
{[%clk 0:00:14]} 57. Bb7 {[%clk 0:00:25.3]} 57... Ng4 {[%clk 0:00:13.5]} 58. Bc8
{[%clk 0:00:25.8]} 58... Ne5+ {[%clk 0:00:13.4]} 59. Kg2 {[%clk 0:00:25.8]}
59... Bd6 {[%clk 0:00:12.6]} 60. Kh3 {[%clk 0:00:23.8]} 60... Ng6 {[%clk
0:00:12.3]} 61. Kg2 {[%clk 0:00:23.7]} 61... f4 {[%clk 0:00:11.9]} 62. gxf4
{[%clk 0:00:24.1]} 62... Nxf4+ {[%clk 0:00:11.1]} 63. Kf3 {[%clk 0:00:24.3]}
63... Ng6 {[%clk 0:00:11.3]} 64. Kg4 {[%clk 0:00:25.2]} 64... Kg7 {[%clk
0:00:08.9]} 65. h5 {[%clk 0:00:24.3]} 65... Ne7 {[%clk 0:00:08.8]} 66. Bd7
{[%clk 0:00:24.3]} 66... Bc5 {[%clk 0:00:08.2]} 67. Kf4 {[%clk 0:00:23.8]} 67...
Bd4 {[%clk 0:00:08.5]} 68. Ke4 {[%clk 0:00:24.1]} 68... Bf6 {[%clk 0:00:08.8]}
69. Kf4 {[%clk 0:00:24.7]} 69... Bg5+ {[%clk 0:00:09.5]} 70. Kg4 {[%clk
0:00:25.2]} 70... Kf6 {[%clk 0:00:10.1]} 71. Bb5 {[%clk 0:00:23.7]} 71... Ke5
{[%clk 0:00:10.6]} 72. Bd7 {[%clk 0:00:23.5]} 72... f5+ {[%clk 0:00:10.8]} 73.
Kf3 {[%clk 0:00:24]} 73... f4 {[%clk 0:00:09.9]} 74. Kg4 {[%clk 0:00:22.4]}
74... Nd5 {[%clk 0:00:10]} 75. Bc6 {[%clk 0:00:21.9]} 75... Nf6+ {[%clk
0:00:10.2]} 76. Kf3 {[%clk 0:00:21]} 76... Nxh5 {[%clk 0:00:10.7]} 77. Be8
{[%clk 0:00:21.8]} 77... Nf6 {[%clk 0:00:11.1]} 78. Bg6 {[%clk 0:00:22.7]} 78...
h5 {[%clk 0:00:09.9]} 79. Bf7 {[%clk 0:00:22.9]} 79... h4 {[%clk 0:00:10.3]} 80.
Bg6 {[%clk 0:00:23.5]} 80... Nd5 {[%clk 0:00:08.1]} 81. Be8 {[%clk 0:00:22.9]}
81... Ne3 {[%clk 0:00:06.6]} 82. Bd7 {[%clk 0:00:23.2]} 82... Bh6 {[%clk
0:00:04.9]} 83. Bc8 {[%clk 0:00:22.9]} 83... Bg5 {[%clk 0:00:04.7]} 84. Bd7
{[%clk 0:00:23]} 84... Nc2 {[%clk 0:00:04.4]} 85. Kg4 {[%clk 0:00:22]} 85... Kf6
{[%clk 0:00:03.8]} 86. Bc6 {[%clk 0:00:21.4]} 86... Nd4 {[%clk 0:00:04.2]} 87.
Bd7 {[%clk 0:00:20.8]} 87... f3 {[%clk 0:00:03.9]} 88. Kh3 {[%clk 0:00:20.9]}
88... Ke5 {[%clk 0:00:03.8]} 89. Bc8 {[%clk 0:00:20.9]} 89... Kf4 {[%clk
0:00:03.6]} 90. Kh2 {[%clk 0:00:21.2]} 90... Ke3 {[%clk 0:00:03.8]} 91. Ba6
{[%clk 0:00:21.2]} 91... Ne2 {[%clk 0:00:03.7]} 92. Kh3 {[%clk 0:00:22.1]} 92...
f2 {[%clk 0:00:03.3]} 93. Kg2 {[%clk 0:00:23]} 93... f1=Q+ {[%clk 0:00:03.7]}
94. Kxf1 {[%clk 0:00:23.4]} 94... Nf4 {[%clk 0:00:03.1]} 95. Kg1 {[%clk
0:00:23.5]} 95... Kf3 {[%clk 0:00:03.4]} 96. Bb7+ {[%clk 0:00:23.3]} 96... Kg3
{[%clk 0:00:03.4]} 97. Bc8 {[%clk 0:00:23.9]} 97... Ne2+ {[%clk 0:00:03]} 98.
Kh1 {[%clk 0:00:23.5]} 98... Be3 {[%clk 0:00:03.4]} 99. Bd7 {[%clk 0:00:23.3]}
99... Nf4 {[%clk 0:00:03.8]} 100. Bc8 {[%clk 0:00:22.4]} 100... Bf2 {[%clk
0:00:04.1]} 101. Bd7 {[%clk 0:00:22.7]} 101... Kf3 {[%clk 0:00:04.5]} 102. Kh2
{[%clk 0:00:22.4]} 102... Bg3+ {[%clk 0:00:04.6]} 103. Kg1 {[%clk 0:00:23]}
103... Ne2+ {[%clk 0:00:04.7]} 104. Kh1 {[%clk 0:00:23.2]} 104... Nd4 {[%clk
0:00:04.9]} 105. Kg1 {[%clk 0:00:23.4]} 105... Bf2+ {[%clk 0:00:04.5]} 106. Kh2
{[%clk 0:00:23.7]} 106... Kf4 {[%clk 0:00:04.7]} 107. Kh3 {[%clk 0:00:24.2]}
107... Bg3 {[%clk 0:00:04.7]} 108. Bc8 {[%clk 0:00:24.1]} 108... Kg5 {[%clk
0:00:04.9]} 109. Kg2 {[%clk 0:00:24.5]} 109... Kf4 {[%clk 0:00:05]} 110. Kh3
{[%clk 0:00:25.1]} 110... Nc2 {[%clk 0:00:05.4]} 111. Kg2 {[%clk 0:00:25.6]}
111... Ne3+ {[%clk 0:00:05.9]} 112. Kh3 {[%clk 0:00:26.3]} 112... Nc4 {[%clk
0:00:06.3]} 113. Kg2 {[%clk 0:00:26.7]} 113... Ne5 {[%clk 0:00:06.9]} 114. Kh3
{[%clk 0:00:26.5]} 114... Nf7 {[%clk 0:00:07.3]} 115. Kg2 {[%clk 0:00:26.1]}
115... Ng5 {[%clk 0:00:08]} 116. Bd7 {[%clk 0:00:26.4]} 116... Ke4 {[%clk
0:00:08.6]} 117. Bc8 {[%clk 0:00:26.8]} 117... Be1 {[%clk 0:00:09.2]} 118. Bd7
{[%clk 0:00:27.2]} 118... Kf4 {[%clk 0:00:09.7]} 119. Bc8 {[%clk 0:00:27.8]}
119... Bd2 {[%clk 0:00:09.5]} 120. Bd7 {[%clk 0:00:28.2]} 120... Bc3 {[%clk
0:00:09.3]} 121. Bc8 {[%clk 0:00:28.7]} 121... Bf6 {[%clk 0:00:10]} 122. Bd7
{[%clk 0:00:29.1]} 122... Ne4 {[%clk 0:00:10]} 123. Kh3 {[%clk 0:00:28.2]}
123... Ke3 {[%clk 0:00:09.6]} 124. Kg2 {[%clk 0:00:26.7]} 124... Nf2 {[%clk
0:00:09.4]} 125. Bc8 {[%clk 0:00:26.7]} 125... Nd3 {[%clk 0:00:09.8]} 126. Bd7
{[%clk 0:00:27.2]} 126... Nf4+ {[%clk 0:00:10.2]} 127. Kh2 {[%clk 0:00:27.7]}
127... Kf3 {[%clk 0:00:10.3]} 128. Bc8 {[%clk 0:00:27.9]} 128... Be5 {[%clk
0:00:10.3]} 129. Kg1 {[%clk 0:00:27.8]} 129... Kg3 {[%clk 0:00:10.5]} 130. Kf1
{[%clk 0:00:27.7]} 130... Nh5 {[%clk 0:00:10.3]} 131. Kg1 {[%clk 0:00:27.6]}
131... Nf6 {[%clk 0:00:10.6]} 132. Kh1 {[%clk 0:00:25.1]} 132... Ne4 {[%clk
0:00:09.7]} 133. Kg1 {[%clk 0:00:25.4]} 133... Bd4+ {[%clk 0:00:09.4]} 134. Kf1
{[%clk 0:00:24.2]} 134... h3 {[%clk 0:00:08.4]} 135. Bxh3 {[%clk 0:00:23.9]}
135... Kxh3 {[%clk 0:00:09.3]} 136. Ke2 {[%clk 0:00:24.7]} 136... Bf6 {[%clk
0:00:08.2]} 137. Kd3 {[%clk 0:00:25.6]} 137... Ng5 {[%clk 0:00:08.1]} 138. Ke3
{[%clk 0:00:26.5]} 138... Kg4 {[%clk 0:00:08.3]} 139. Kf2 {[%clk 0:00:26.7]}
139... Kf4 {[%clk 0:00:07.8]} 140. Kg2 {[%clk 0:00:26.4]} 140... Bd4 {[%clk
0:00:06.7]} 141. Kf1 {[%clk 0:00:25.9]} 141... Ke3 {[%clk 0:00:04.3]} 142. Kg2
{[%clk 0:00:26.4]} 142... Ne4 {[%clk 0:00:04.8]} 143. Kg1 {[%clk 0:00:25]}
143... Kf3+ {[%clk 0:00:04.3]} 144. Kh2 {[%clk 0:00:25.6]} 144... Nf2 {[%clk
0:00:04.4]} 145. Kg1 {[%clk 0:00:25.5]} 145... Be5 {[%clk 0:00:05.1]} 146. Kf1
{[%clk 0:00:25.2]} 146... Bh2 {[%clk 0:00:05.7]} 147. Ke1 {[%clk 0:00:25.3]}
147... Ne4 {[%clk 0:00:05.7]} 148. Kf1 {[%clk 0:00:26.2]} 148... Nd2+ {[%clk
0:00:04.8]} 149. Ke1 {[%clk 0:00:26.7]} 149... Ke3 {[%clk 0:00:05.2]} 150. Kd1
{[%clk 0:00:27.3]} 150... Kd3 {[%clk 0:00:05.7]} 151. Ke1 {[%clk 0:00:28]}
151... Bg3+ {[%clk 0:00:05.7]} 152. Kd1 {[%clk 0:00:28.6]} 152... Nc4 {[%clk
0:00:02.6]} 153. Kc1 {[%clk 0:00:28.5]} 153... Bf4+ {[%clk 0:00:02.6]} 154. Kd1
{[%clk 0:00:28.8]} 154... Bg3 {[%clk 0:00:02.8]} 155. Kc1 {[%clk 0:00:29.2]}
155... Nd2 {[%clk 0:00:03]} 156. Kd1 {[%clk 0:00:29.7]} 156... Nc4 {[%clk
0:00:02.8]} 1/2-1/2